fUST/lending_fUST_20250618
["ID","MTS","AMOUNT","RATE_DAILY","PERIOD"]
[366437236,1750254648070,-36980.74,0.000238,7]
[366437237,1750254648081,-2000.0,0.00023816,2]
[366437238,1750254648091,-1000.0,0.00023816,2]
[366437239,1750254648101,-2400.0,0.00023816,2]
[366437240,1750254648111,-411.70866119,0.00023831,10]
[366437241,1750254648121,-460.0,0.00023835,6]
[366437242,1750254648132,-1183.84,0.00023835,6]
[366437243,1750254648142,-931.79,0.00023835,6]
[366437244,1750254648152,-784.96,0.00023835,6]
[366437245,1750254648163,-473.41,0.00023835,6]
[366437246,1750254648173,-460.0,0.00023835,6]
[366437247,1750254648183,-460.0,0.00023835,6]
[366437248,1750254648193,-606.5,0.00023835,6]
[366437249,1750254648203,-460.0,0.00023835,6]
[366437250,1750254648214,-549.2,0.00023835,6]
[366437251,1750254648224,-620.41,0.00023835,6]
[366437252,1750254648234,-460.0,0.00023835,6]
[366437253,1750254648244,-1443.99,0.00023835,6]
[366437254,1750254648254,-460.0,0.00023835,6]
[366437255,1750254648265,-460.0,0.00023835,6]
[366437256,1750254648277,-1994.08,0.00023835,6]
[366437257,1750254648287,-460.0,0.00023835,6]
[366437258,1750254648298,-989.45,0.00023835,6]
[366437259,1750254648308,-1065.0,0.00023835,6]
[366437260,1750254648318,-673.65,0.00023912,6]
[366437261,1750254648329,-216946.82814,0.00023971,4]
[366437262,1750254648338,-2000.0,0.00023972,7]
[366437263,1750254648348,-2000.0,0.00023972,7]
[366437264,1750254648358,-2000.0,0.00023972,7]
[366437265,1750254648368,-2000.0,0.00023972,7]
[366437266,1750254648377,-2000.0,0.00023972,7]
[366437267,1750254648387,-2000.0,0.00023972,7]
[366437268,1750254648397,-2000.0,0.00023972,7]
[366437269,1750254648407,-2000.0,0.00023972,7]
[366437270,1750254648417,-2000.0,0.00023972,7]
[366437271,1750254648426,-429.08186388,0.00023972,7]
[366437272,1750254648436,-1104.69,0.00024,2]
[366437273,1750254648448,-163.92,0.00024,2]
[366437274,1750254648458,-163.92,0.00024,2]
[366437275,1750254648468,-163.92,0.00024,2]
[366437276,1750254648478,-163.92,0.00024,2]
[366437277,1750254648487,-500.0,0.00024,30]
[366437278,1750254648497,-411.70866119,0.00024038,10]
[366437279,1750254648507,-151.0,0.00024096,7]
[366437280,1750254648519,-3198.01989316,0.00024097,2]
[366437281,1750254648528,-460.0,0.00024109,6]
[366437282,1750254648539,-1183.84,0.00024109,6]
[366437283,1750254648549,-931.79,0.00024109,6]
[366437284,1750254648559,-784.96,0.00024109,6]
[366437285,1750254648569,-473.41,0.00024109,6]
[366437286,1750254648579,-460.0,0.00024109,6]
[366437287,1750254648589,-460.0,0.00024109,6]
[366437288,1750254648599,-606.5,0.00024109,6]
[366437289,1750254648609,-460.0,0.00024109,6]
[366437290,1750254648618,-549.2,0.00024109,6]
[366437291,1750254648632,-620.41,0.00024109,6]
[366437292,1750254648641,-460.0,0.00024109,6]
[366437293,1750254648651,-1443.99,0.00024109,6]
[366437294,1750254648661,-460.0,0.00024109,6]
[366437295,1750254648672,-1994.08,0.00024109,6]
[366437296,1750254648682,-460.0,0.00024109,6]
[366437297,1750254648692,-989.45,0.00024109,6]
[366437298,1750254648703,-1065.0,0.00024109,6]
[366437299,1750254648714,-673.65,0.00024186,6]
[366437300,1750254648723,-411.70866119,0.00024245,10]
[366437301,1750254648733,-168.0,0.00024247,2]
[366437302,1750254648743,-267.93484697,0.00024289,2]
[366437303,1750254648753,-61322.03,0.000243,2]
[366437304,1750254648763,-151.0,0.00024315,7]
[366437305,1750254648773,-754.10696022,0.00024363,2]
[366437306,1750254648782,-2663.78598668,0.00024364,2]
[366437307,1750254648792,-460.0,0.00024383,6]
[366437308,1750254648802,-1183.84,0.00024383,6]
[366437309,1750254648811,-931.79,0.00024383,6]
[366437310,1750254648822,-784.96,0.00024383,6]
[366437311,1750254648832,-473.41,0.00024383,6]
[366437312,1750254648845,-460.0,0.00024383,6]
[366437313,1750254648855,-173.23,0.00024383,6]
[366437314,1750254648865,-606.5,0.00024383,6]
[366437315,1750254648875,-460.0,0.00024383,6]
[366437316,1750254648885,-549.2,0.00024383,6]
[366437317,1750254648894,-620.41,0.00024383,6]
[366437318,1750254648904,-460.0,0.00024383,6]
[366437319,1750254648913,-1443.99,0.00024383,6]
[366437320,1750254648923,-460.0,0.00024383,6]
[366437321,1750254648933,-1994.08,0.00024383,6]
[366437322,1750254648942,-460.0,0.00024383,6]
[366437323,1750254648952,-989.45,0.00024383,6]
[366437324,1750254648962,-1065.0,0.00024383,6]
[366437325,1750254648971,-411.70866119,0.00024452,11]
[366437326,1750254648981,-673.65,0.0002446,6]
[366437327,1750254648992,-500.0,0.000245,30]
[366437328,1750254649002,-151.0,0.00024534,7]
[366437329,1750254649012,-76696.28,0.00024555,11]
[366437330,1750254649023,-2200.0,0.00024645,2]
[366437331,1750254649034,-460.0,0.00024657,6]
[366437332,1750254649043,-1183.84,0.00024657,6]
[366437333,1750254649053,-931.79,0.00024657,6]
[366437334,1750254649064,-784.96,0.00024657,6]
[366437335,1750254649074,-473.41,0.00024657,6]
[366437336,1750254649083,-460.0,0.00024657,6]
[366437337,1750254649093,-606.5,0.00024657,6]
[366437338,1750254649102,-460.0,0.00024657,6]
[366437339,1750254649112,-549.2,0.00024657,6]
[366437340,1750254649121,-620.41,0.00024657,6]
[366437341,1750254649131,-460.0,0.00024657,6]
[366437342,1750254649141,-1443.99,0.00024657,6]
[366437343,1750254649151,-460.0,0.00024657,6]
[366437344,1750254649162,-1994.08,0.00024657,6]
[366437345,1750254649172,-460.0,0.00024657,6]
[366437346,1750254649182,-989.45,0.00024657,6]
[366437347,1750254649192,-1065.0,0.00024657,6]
[366437348,1750254649202,-413.06940215,0.00024658,2]
[366437349,1750254649213,-411.70866119,0.00024659,11]
[366437350,1750254649223,-500.59896885,0.00024673,2]
[366437351,1750254649233,-673.65,0.00024734,6]
[366437352,1750254649243,-151.0,0.00024753,7]
[366437353,1750254649253,-184293.3,0.00024772,11]
[366437354,1750254649264,-3198.01989316,0.00024831,2]
[366437355,1750254649274,-168.45861396,0.00024831,2]
[366437356,1750254649283,-168.45861387,0.00024855,2]
[366437357,1750254649294,-411.70866119,0.00024866,12]
[366437358,1750254649304,-168.45861387,0.00024878,2]
[366437359,1750254649314,-200.08,0.000249,7]
[366437360,1750254649324,-564228.27008478,0.000249,2]
[366437361,1750254649464,-460.0,0.00021917,6]
[366437362,1750254649474,-156.95776634,0.00021917,6]
[366437363,1750254649484,-460.0,0.00022191,6]
[366437364,1750254649494,-460.0,0.00022465,6]
[366437365,1750254649504,-390.52,0.00022739,6]
[366437366,1750254649514,-3074.0752381,0.000249,2]
[366437367,1750254649527,-488.35615697,0.000249,2]
[366437368,1750254649777,-3.20661172,0.000249,2]
[366437369,1750254649874,-460.0,0.00021917,6]
[366437370,1750254649883,-460.0,0.00022191,6]
[366437371,1750254649893,-406.0,0.00023076,2]
[366437372,1750254649902,-51055.99546914,0.000249,2]
[366437373,1750254649917,-5977.49702897,0.000249,2]
[366437374,1750254649990,-460.0,0.00021917,6]
[366437375,1750254650000,-19481.35674565,0.000249,2]
[366437376,1750254685452,-223.0,0.00019009,2]
[366437377,1750254708828,156.0,0.00016438,3]
[366437381,1750255025849,185.0,0.00016438,3]
[366437392,1750255342567,176.0,0.00016438,3]
[366437394,1750255415455,169.870992,0.00013699,2]
[366437402,1750255618081,-278.07938606,0.00019,2]
[366437403,1750255624866,-151.85,0.0001881,2]
[366437405,1750255658819,162.0,0.00016438,3]
[366437409,1750255800811,-300.0,0.00018791,2]
[366437410,1750255803336,-391.41184371,0.00018603,2]
[366437411,1750255812600,-186.72856847,0.00018417,2]
[366437483,1750255833043,-4813.27143153,0.00018417,2]
[366437484,1750255833054,-4105.51131172,0.00018603,2]
[366437485,1750255833064,-718.63352908,0.00018791,2]
[366437486,1750255833074,-714.53286737,0.000189,2]
[366437487,1750255833084,-1000.0,0.00019009,2]
[366437488,1750255833094,-300.0,0.00019383,2]
[366437490,1750255833104,-300.0,0.00019383,2]
[366437491,1750255833113,-300.0,0.00019383,2]
[366437493,1750255833125,-1200.0,0.00019383,2]
[366437494,1750255833135,-300.0,0.00019385,2]
[366437496,1750255833144,-1013.7,0.00019598,2]
[366437498,1750255833154,-1000.0,0.00019739,2]
[366437499,1750255833164,-643.82570637,0.0002,2]
[366437500,1750255833173,-643.82570623,0.00020107,2]
[366437501,1750255833184,-169.870992,0.00020187,2]
[366437502,1750255833194,-192.43067945,0.00020221,2]
[366437503,1750255833203,-24900.0,0.00020222,2]
[366437504,1750255833213,-239.186073,0.00020236,2]
[366437505,1750255833224,-643.82570623,0.00020314,3]
[366437506,1750255833233,-164.26483938,0.00020378,2]
[366437507,1750255833243,-643.82570623,0.00020521,3]
[366437508,1750255833253,-643.82570623,0.00020728,3]
[366437509,1750255833263,-1154.2067005,0.00020805,2]
[366437510,1750255833272,-160.0,0.00020877,2]
[366437511,1750255833282,-213.43818883,0.00020877,2]
[366437512,1750255833292,-643.82570623,0.00020934,4]
[366437513,1750255833301,-160.0,0.00020989,2]
[366437514,1750255833311,-160.0,0.00020989,2]
[366437515,1750255833320,-160.0,0.00020989,2]
[366437516,1750255833329,-160.0,0.00020989,2]
[366437517,1750255833339,-160.0,0.00020989,2]
[366437518,1750255833348,-160.0,0.00020989,2]
[366437519,1750255833358,-220.0,0.00021119,2]
[366437520,1750255833367,-215.0,0.00021119,2]
[366437521,1750255833377,-420.0,0.00021119,2]
[366437522,1750255833387,-643.82570623,0.00021141,4]
[366437523,1750255833397,-391.0,0.00021221,2]
[366437524,1750255833406,-643.82570623,0.00021348,5]
[366437525,1750255833415,-2027.39,0.0002138,2]
[366437526,1750255833425,-845.78193577,0.00021446,2]
[366437527,1750255833435,-229.98435572,0.00021446,2]
[366437528,1750255833444,-424.70586748,0.00021446,2]
[366437529,1750255833455,-10000.0,0.00021524,2]
[366437530,1750255833464,-643.82570623,0.00021555,5]
[366437531,1750255833473,-349.74474131,0.00021577,2]
[366437532,1750255833483,-643.82570623,0.00021762,5]
[366437533,1750255833493,-300.0,0.00021796,2]
[366437534,1750255833502,-417.31,0.00021907,3]
[366437535,1750255833512,-255.24,0.00021907,3]
[366437536,1750255833524,-255.0,0.0002191,2]
[366437537,1750255833534,-255.0,0.00021915,2]
[366437538,1750255833544,-460.0,0.00021917,6]
[366437539,1750255833554,-460.0,0.00021917,6]
[366437540,1750255833564,-460.0,0.00021917,6]
[366437541,1750255833575,-460.0,0.00021917,6]
[366437542,1750255833585,-442.72039857,0.00021917,6]
[366437543,1750255833596,-460.0,0.00021917,6]
[366437544,1750255833607,-440.0,0.00021917,6]
[366437545,1750255833618,-432.5513654,0.00021917,6]
[366437546,1750255833630,-440.0,0.00021917,6]
[366437547,1750255833641,-430.0,0.00021917,6]
[366437548,1750255833651,-524.92471218,0.00021917,6]
[366437549,1750255833662,-456.54841096,0.00021917,6]
[366437550,1750255833673,-460.0,0.00021917,6]
[366437551,1750255833683,-588.74765143,0.00021917,6]
[366437552,1750255833694,-440.0,0.00021917,6]
[366437553,1750255833704,-460.0,0.00021917,6]
[366437554,1750255833714,-368.32170513,0.00021917,6]
[366437555,1750255833724,-460.0,0.00021917,6]
[366437556,1750255833734,-430.0,0.00021917,6]
[366437557,1750255833744,-460.0,0.00021917,6]
[366437558,1750255833754,-440.0,0.00021917,6]
[366437559,1750255833764,-460.0,0.00021917,6]
[366437560,1750255833775,-470.0,0.00021917,6]
[366437561,1750255833786,-460.0,0.00021917,6]
[366437562,1750255833797,-373.02435162,0.00021917,6]
[366437563,1750255833807,-460.0,0.00021917,6]
[366437564,1750255833817,-460.0,0.00021917,6]
[366437565,1750255833827,-460.0,0.00021917,6]
[366437566,1750255833837,-460.0,0.00021917,6]
[366437567,1750255833846,-440.0,0.00021917,6]
[366437568,1750255833856,-460.0,0.00021917,6]
[366437569,1750255833866,-460.0,0.00021917,6]
[366437570,1750255833875,-450.39544778,0.00021917,6]
[366437571,1750255833885,-460.0,0.00021917,6]
[366437572,1750255833894,-450.0,0.00021917,6]
[366437573,1750255833904,-450.0,0.00021917,6]
[366437574,1750255833914,-460.0,0.00021917,6]
[366437575,1750255833923,-430.0,0.00021917,6]
[366437576,1750255833933,-440.0,0.00021917,6]
[366437577,1750255833942,-436.93029418,0.00021917,6]
[366437578,1750255833952,-439.78948014,0.00021917,6]
[366437579,1750255833962,-460.0,0.00021917,6]
[366437580,1750255833971,-435.14217615,0.00021917,6]
[366437581,1750255833981,-553.05750101,0.00021917,6]
[366437582,1750255833992,-460.0,0.00021917,6]
[366437583,1750255834002,-430.0,0.00021917,6]
[366437584,1750255834012,-460.0,0.00021917,6]
[366437585,1750255834024,-490.0,0.00021917,6]
[366437586,1750255834035,-460.0,0.00021917,6]
[366437587,1750255834048,-430.0,0.00021917,6]
[366437588,1750255834060,-460.0,0.00021917,6]
[366437589,1750255834071,-390.0,0.00021917,6]
[366437590,1750255834081,-390.89750212,0.00021917,6]
[366437591,1750255834092,-460.0,0.00021917,6]
[366437592,1750255834230,-440.0,0.00021917,6]
[366437593,1750255834241,-222.822,0.00021917,2]
[366437594,1750255834251,-28.31784715,0.00021917,6]
[366437595,1750255834267,-431.68215285,0.00021917,6]
[366437596,1750255834277,-394.01491629,0.00021917,6]
[366437604,1750255838846,-500.0,0.00019008,2]
[366437605,1750255838856,-500.0,0.00019008,2]
[366437606,1750255838866,-160.28414998,0.00019008,2]
[366437607,1750255838876,-500.0,0.00019008,2]
[366437608,1750255838889,-201.53957395,0.00019008,2]
[366437609,1750255838899,-500.0,0.00019008,2]
[366437611,1750255838909,-500.0,0.00019008,2]
[366437613,1750255838919,-500.0,0.00019008,2]
[366437615,1750255838929,-500.0,0.00019008,2]
[366437617,1750255838939,-500.0,0.00019008,2]
[366437618,1750255838949,-500.0,0.00019008,2]
[366437619,1750255838959,-336.26559041,0.00019008,2]
[366437620,1750255838968,-500.0,0.00019008,2]
[366437621,1750255838978,-500.0,0.00019008,2]
[366437622,1750255838988,-500.0,0.00019008,2]
[366437623,1750255838998,-500.0,0.00019008,2]
[366437624,1750255839008,-500.0,0.00019008,2]
[366437625,1750255839018,-500.0,0.00019008,2]
[366437626,1750255839028,-500.0,0.00019008,2]
[366437627,1750255839044,-500.0,0.00019008,2]
[366437628,1750255839057,-500.0,0.00019008,2]
[366437629,1750255839068,-500.0,0.00019008,2]
[366437630,1750255839079,-500.0,0.00019008,2]
[366437631,1750255839089,-223.10717194,0.00019008,2]
[366437632,1750255839099,-500.0,0.00019008,2]
[366437633,1750255839108,-500.0,0.00019008,2]
[366437634,1750255839118,-500.0,0.00019008,2]
[366437635,1750255839128,-500.0,0.00019008,2]
[366437636,1750255839138,-500.0,0.00019008,2]
[366437637,1750255839147,-500.0,0.00019008,2]
[366437638,1750255839157,-185.87251059,0.00020136,2]
[366437639,1750255839167,-835.98428123,0.00021446,2]
[366437640,1750255839177,-65.98508371,0.00021917,6]
[366437641,1750255839187,-400.0,0.00021917,6]
[366437642,1750255839197,-460.0,0.00021917,6]
[366437643,1750255839207,-460.0,0.00021917,6]
[366437644,1750255839217,-380.02280269,0.00021917,6]
[366437645,1750255839226,-460.0,0.00021917,6]
[366437646,1750255839235,-460.0,0.00021917,6]
[366437647,1750255839245,-460.0,0.00021917,6]
[366437648,1750255839255,-460.0,0.00021917,6]
[366437649,1750255839264,-460.0,0.00021917,6]
[366437650,1750255839275,-462.12506302,0.00021917,6]
[366437651,1750255839284,-247.97760362,0.00021917,6]
[366437652,1750255839294,-460.0,0.00021917,6]
[366437653,1750255839304,-259.1308352,0.00021917,6]
[366437654,1750255839315,-263.90852847,0.00021917,6]
[366437655,1750255839325,-500.0,0.00021917,6]
[366437656,1750255839335,-460.0,0.00021917,6]
[366437657,1750255839347,-460.0,0.00021917,6]
[366437658,1750255839357,-360.0,0.00021917,6]
[366437659,1750255839368,-460.0,0.00021917,6]
[366437660,1750255839378,-380.0,0.00021917,6]
[366437661,1750255839388,-460.0,0.00021917,6]
[366437662,1750255839398,-460.0,0.00021917,6]
[366437663,1750255839408,-584.878,0.00021917,6]
[366437664,1750255839418,-460.0,0.00021917,6]
[366437665,1750255839427,-586.823761,0.00021917,6]
[366437666,1750255839437,-460.0,0.00021917,2]
[366437667,1750255839447,-460.0,0.00021917,6]
[366437668,1750255839457,-460.0,0.00021917,6]
[366437669,1750255839467,-380.0,0.00021917,6]
[366437670,1750255839478,-460.0,0.00021917,6]
[366437671,1750255839488,-460.0,0.00021917,6]
[366437672,1750255839498,-477.17,0.00021917,6]
[366437673,1750255839508,-460.0,0.00021917,6]
[366437674,1750255839517,-460.0,0.00021917,6]
[366437675,1750255839531,-460.0,0.00021917,6]
[366437676,1750255839540,-460.0,0.00021917,6]
[366437677,1750255839551,-460.0,0.00021917,6]
[366437678,1750255839561,-460.0,0.00021917,6]
[366437679,1750255839571,-460.0,0.00021917,6]
[366437680,1750255839582,-460.0,0.00021917,6]
[366437681,1750255839592,-280.0,0.00021917,6]
[366437682,1750255839602,-460.0,0.00021917,6]
[366437683,1750255839611,-460.0,0.00021917,6]
[366437684,1750255839621,-165.91,0.00021917,6]
[366437685,1750255839631,-460.0,0.00021917,6]
[366437686,1750255839641,-181.04052881,0.00021917,6]
[366437687,1750255839651,-460.0,0.00021917,6]
[366437688,1750255839661,-460.0,0.00021917,6]
[366437689,1750255839671,-460.0,0.00021917,6]
[366437690,1750255839681,-607.59159965,0.00021917,6]
[366437691,1750255839692,-982.97,0.00021917,6]
[366437692,1750255839702,-460.0,0.00021917,6]
[366437693,1750255839712,-460.0,0.00021917,6]
[366437694,1750255839723,-460.0,0.00021917,6]
[366437695,1750255839733,-460.0,0.00021917,6]
[366437696,1750255839742,-460.0,0.00021917,6]
[366437697,1750255839752,-460.0,0.00021917,6]
[366437698,1750255839762,-538.67113294,0.00021917,6]
[366437699,1750255839772,-460.0,0.00021917,6]
[366437700,1750255839783,-460.0,0.00021917,6]
[366437701,1750255839793,-460.0,0.00021917,6]
[366437702,1750255839802,-460.0,0.00021917,6]
[366437703,1750255839812,-1193.68,0.00021917,6]
[366437704,1750255839822,-402.86698581,0.00021917,6]
[366437705,1750255839832,-1472.65,0.00021917,6]
[366437706,1750255839842,-440.0,0.00021917,6]
[366437707,1750255839851,-460.0,0.00021917,6]
[366437708,1750255839861,-732.01,0.00021917,6]
[366437709,1750255839870,-347.25318973,0.00021917,6]
[366437710,1750255839880,-1235.88,0.00021917,6]
[366437711,1750255839890,-420.0,0.00021917,6]
[366437712,1750255839900,-440.0,0.00021917,6]
[366437713,1750255839910,-460.16378127,0.00021917,6]
[366437714,1750255839919,-460.0,0.00021917,6]
[366437715,1750255839929,-1710.34,0.00021917,6]
[366437716,1750255839939,-460.0,0.00021917,6]
[366437717,1750255839948,-460.0,0.00021917,6]
[366437718,1750255839958,-460.0,0.00021917,6]
[366437719,1750255839967,-460.0,0.00021917,6]
[366437720,1750255839977,-460.0,0.00021917,6]
[366437721,1750255839987,-420.0,0.00021917,6]
[366437722,1750255839997,-440.0,0.00021917,6]
[366437723,1750255840007,-460.0,0.00021917,6]
[366437724,1750255840018,-460.0,0.00021917,6]
[366437725,1750255840032,-460.0,0.00021917,6]
[366437726,1750255840042,-460.0,0.00021917,6]
[366437727,1750255840055,-460.0,0.00021917,6]
[366437728,1750255840064,-500.0,0.00021917,2]
[366437729,1750255840074,-460.0,0.00021917,6]
[366437730,1750255840084,-460.0,0.00021917,6]
[366437731,1750255840094,-460.0,0.00021917,6]
[366437732,1750255840110,-460.0,0.00021917,6]
[366437733,1750255840123,-488.2607,0.00021917,6]
[366437734,1750255840133,-508.18164989,0.00021917,6]
[366437735,1750255840143,-460.0,0.00021917,6]
[366437736,1750255840152,-460.0,0.00021917,6]
[366437737,1750255840162,-1460.36,0.00021917,6]
[366437738,1750255840172,-460.0,0.00021917,6]
[366437739,1750255840181,-367.1895561,0.00021917,6]
[366437740,1750255840191,-460.0,0.00021917,6]
[366437741,1750255840200,-599.07,0.00021917,6]
[366437742,1750255840210,-460.0,0.00021917,6]
[366437743,1750255840219,-460.0,0.00021917,6]
[366437744,1750255840229,-460.0,0.00021917,6]
[366437745,1750255840239,-460.0,0.00021917,6]
[366437746,1750255840247,-460.0,0.00021917,6]
[366437747,1750255840256,-460.0,0.00021917,6]
[366437748,1750255840278,-460.0,0.00021917,6]
[366437750,1750255840290,-460.0,0.00021917,6]
[366437752,1750255840300,-460.0,0.00021917,6]
[366437753,1750255840310,-460.0,0.00021917,6]
[366437754,1750255840320,-460.0,0.00021917,6]
[366437755,1750255840330,-440.0,0.00021917,6]
[366437756,1750255840340,-440.0,0.00021917,6]
[366437757,1750255840351,-460.0,0.00021917,6]
[366437758,1750255840360,-433.45996284,0.00021917,6]
[366437759,1750255840370,-889.28,0.00021917,6]
[366437760,1750255840381,-460.0,0.00021917,6]
[366437761,1750255840391,-460.0,0.00021917,6]
[366437762,1750255840401,-460.0,0.00021917,6]
[366437763,1750255840411,-460.0,0.00021917,6]
[366437764,1750255840421,-502.62,0.00021917,6]
[366437765,1750255840431,-440.0,0.00021917,6]
[366437767,1750255840441,-460.0,0.00021917,6]
[366437768,1750255840452,-460.0,0.00021917,6]
[366437770,1750255840463,-460.0,0.00021917,6]
[366437771,1750255840473,-460.0,0.00021917,6]
[366437772,1750255840483,-460.0,0.00021917,6]
[366437773,1750255840493,-460.0,0.00021917,6]
[366437774,1750255840502,-233.1604358,0.00021917,6]
[366437775,1750255840512,-440.0,0.00021917,6]
[366437776,1750255840525,-532.64,0.00021917,6]
[366437777,1750255840535,-460.0,0.00021917,6]
[366437778,1750255840546,-460.0,0.00021917,6]
[366437779,1750255840556,-460.0,0.00021917,6]
[366437780,1750255840567,-460.0,0.00021917,6]
[366437781,1750255840577,-460.0,0.00021917,6]
[366437782,1750255840587,-460.0,0.00021917,6]
[366437783,1750255840597,-460.0,0.00021917,6]
[366437784,1750255840608,-460.0,0.00021917,6]
[366437785,1750255840618,-460.0,0.00021917,6]
[366437786,1750255840629,-430.0,0.00021917,6]
[366437787,1750255840639,-527.20464,0.00021917,6]
[366437788,1750255840650,-460.0,0.00021917,6]
[366437789,1750255840660,-460.0,0.00021917,6]
[366437790,1750255840670,-2539.98,0.00021917,6]
[366437791,1750255840681,-460.0,0.00021917,6]
[366437792,1750255840691,-460.0,0.00021917,6]
[366437793,1750255840701,-460.0,0.00021917,6]
[366437794,1750255840711,-460.0,0.00021917,6]
[366437795,1750255840721,-700.13,0.00021917,6]
[366437796,1750255840731,-1186.83,0.00021917,6]
[366437797,1750255840742,-460.0,0.00021917,6]
[366437798,1750255840752,-460.0,0.00021917,6]
[366437799,1750255840762,-430.0,0.00021917,6]
[366437800,1750255840775,-402.56600553,0.00021917,6]
[366437801,1750255840786,-373.0676339,0.00021917,6]
[366437802,1750255840797,-460.0,0.00021917,6]
[366437803,1750255840807,-460.0,0.00021917,2]
[366437804,1750255840818,-306.07106305,0.0002192,2]
[366437805,1750255840828,-643.82570623,0.00021969,6]
[366437806,1750255840838,-436.06246489,0.00021973,2]
[366437807,1750255840849,-197.33449502,0.00021973,2]
[366437808,1750255840859,-159.71985028,0.00021973,2]
[366437809,1750255840869,-500.0,0.00021973,2]
[366437810,1750255840879,-500.0,0.00021973,2]
[366437811,1750255840890,-500.0,0.00021973,2]
[366437812,1750255840899,-500.0,0.00021973,2]
[366437813,1750255840910,-618.23716682,0.00021973,2]
[366437814,1750255840920,-505.27602575,0.00021973,2]
[366437815,1750255840930,-500.0,0.00021973,2]
[366437816,1750255840940,-500.0,0.00021973,2]
[366437817,1750255840950,-500.0,0.00021973,2]
[366437818,1750255840960,-500.0,0.00021973,2]
[366437819,1750255840969,-581.14218595,0.00021973,2]
[366437820,1750255840979,-500.0,0.00021973,2]
[366437821,1750255840989,-224.4,0.00022,7]
[366437822,1750255840999,-172.0,0.00022,2]
[366437823,1750255841009,-5342.03679036,0.00022091,2]
[366437824,1750255841023,-500.0,0.00022156,2]
[366437825,1750255841034,-160.0,0.00022156,2]
[366437826,1750255841046,-2056.2529752,0.00022157,2]
[366437827,1750255841059,-207.4,0.00022166,2]
[366437828,1750255841069,-263.09924421,0.00022173,2]
[366437829,1750255841081,-500.0,0.00022173,2]
[366437830,1750255841091,-500.0,0.00022173,2]
[366437831,1750255841101,-500.57742139,0.00022173,2]
[366437832,1750255841111,-500.0,0.00022173,2]
[366437833,1750255841121,-522.88385943,0.00022173,2]
[366437834,1750255841132,-500.0,0.00022173,2]
[366437835,1750255841143,-500.0,0.00022173,2]
[366437836,1750255841152,-500.95027507,0.00022173,2]
[366437837,1750255841292,-500.11410129,0.00022173,2]
[366437838,1750255841302,-263.93359596,0.00022173,2]
[366437839,1750255841316,-192.94408712,0.00022173,2]
[366437840,1750255841327,-500.0,0.00022173,2]
[366437841,1750255841336,-500.0,0.00022173,2]
[366437842,1750255841346,-546.17308086,0.00022173,2]
[366437843,1750255841356,-500.0,0.00022173,2]
[366437844,1750255841366,-643.82570623,0.00022176,6]
[366437845,1750255841376,-460.0,0.00022191,6]
[366437846,1750255841386,-460.0,0.00022191,6]
[366437847,1750255841396,-460.0,0.00022191,6]
[366437848,1750255841406,-460.0,0.00022191,6]
[366437849,1750255841416,-460.0,0.00022191,6]
[366437850,1750255841426,-460.0,0.00022191,6]